fUST/lending_fUST_20250313
["ID","MTS","AMOUNT","RATE_DAILY","PERIOD"]
[356039156,1741812652127,-500.0,0.00022191,2]
[356039157,1741812652137,-500.0,0.00022191,2]
[356039158,1741812652146,-1385.76,0.00022191,2]
[356039159,1741812652155,-1340.29,0.00022191,2]
[356039160,1741812652165,-500.0,0.00022191,2]
[356039161,1741812652175,-500.0,0.00022191,2]
[356039162,1741812652185,-7057.65,0.00022191,2]
[356039163,1741812652194,-500.0,0.00022191,2]
[356039164,1741812652203,-500.0,0.00022191,2]
[356039165,1741812652217,-884.53,0.00022191,2]
[356039166,1741812652227,-500.0,0.00022191,2]
[356039167,1741812652236,-500.0,0.00022191,2]
[356039168,1741812652245,-500.0,0.00022191,2]
[356039169,1741812652256,-500.0,0.00022191,2]
[356039170,1741812652266,-500.0,0.00022191,2]
[356039171,1741812652276,-500.0,0.00022191,2]
[356039172,1741812652287,-500.0,0.00022191,2]
[356039173,1741812652297,-1243.39,0.00022191,2]
[356039174,1741812652306,-500.0,0.00022191,2]
[356039175,1741812652316,-2854.903074,0.00022191,7]
[356039176,1741812652326,-500.0,0.00022191,2]
[356039177,1741812652335,-2854.903074,0.00022191,7]
[356039178,1741812652344,-500.0,0.00022191,2]
[356039179,1741812652353,-634.96,0.00022191,2]
[356039180,1741812652362,-828.39,0.00022191,2]
[356039181,1741812652371,-500.0,0.00022191,2]
[356039182,1741812652381,-353.751824,0.00022191,7]
[356039183,1741812652390,-353.751824,0.00022191,7]
[356039184,1741812652399,-500.0,0.00022191,2]
[356039185,1741812652409,-2854.903074,0.00022191,7]
[356039186,1741812652418,-500.0,0.00022191,2]
[356039187,1741812652427,-2854.903074,0.00022191,7]
[356039188,1741812652436,-500.0,0.00022191,2]
[356039189,1741812652446,-353.751824,0.00022191,7]
[356039190,1741812652455,-353.751824,0.00022191,7]
[356039191,1741812652465,-500.0,0.00022191,2]
[356039192,1741812652474,-500.0,0.00022191,2]
[356039193,1741812652483,-500.0,0.00022191,2]
[356039194,1741812652492,-292.490374,0.00022191,7]
[356039195,1741812652502,-292.490374,0.00022191,7]
[356039196,1741812652511,-500.0,0.00022191,2]
[356039197,1741812652521,-292.490374,0.00022191,7]
[356039198,1741812652531,-292.490374,0.00022191,7]
[356039199,1741812652540,-500.0,0.00022191,2]
[356039200,1741812652549,-5064.97,0.00022191,2]
[356039201,1741812652559,-500.0,0.00022191,2]
[356039202,1741812652568,-500.0,0.00022191,2]
[356039203,1741812652577,-2290.97,0.00022191,2]
[356039204,1741812652587,-637.64305924,0.00022191,2]
[356039205,1741812652596,-4862.11,0.00022191,2]
[356039206,1741812652605,-393.0,0.00022192,2]
[356039207,1741812652614,-157.16136036,0.00022192,2]
[356039208,1741812652624,-151.0,0.000222,7]
[356039209,1741812652633,-200.0,0.00022276,2]
[356039210,1741812652643,-729.71021274,0.00022281,2]
[356039211,1741812652653,-416.66666667,0.00022285,2]
[356039212,1741812652663,-160.0,0.00022285,2]
[356039213,1741812652672,-160.0,0.00022285,2]
[356039214,1741812652681,-15577.25547611,0.00022285,2]
[356039215,1741812652691,-151.0,0.000223,6]
[356039216,1741812652700,-160.0,0.00022314,3]
[356039217,1741812652710,-160.0,0.00022314,3]
[356039218,1741812652718,-2431.36371558,0.00022314,3]
[356039219,1741812652728,-477.691,0.00022365,2]
[356039220,1741812652737,-175.31412188,0.00022365,2]
[356039221,1741812652747,-151.0,0.00022383,7]
[356039222,1741812652756,-151.0,0.00022383,7]
[356039223,1741812652765,-151.0,0.00022383,7]
[356039224,1741812652774,-151.0,0.00022383,7]
[356039225,1741812652783,-151.0,0.00022383,7]
[356039226,1741812652793,-151.0,0.00022383,7]
[356039227,1741812652802,-151.0,0.00022383,7]
[356039228,1741812652812,-160.070529,0.00022383,7]
[356039229,1741812652821,-662.187127,0.00022383,7]
[356039230,1741812652830,-151.0,0.000224,9]
[356039231,1741812652839,-353.0,0.00022432,3]
[356039232,1741812652848,-403.47516316,0.00022432,3]
[356039233,1741812652857,-344.65694257,0.00022432,3]
[356039234,1741812652868,-148808.44319417,0.00022465,5]
[356039235,1741812652877,-29268.4395158,0.00022465,5]
[356039236,1741812652887,-500.0,0.00022465,2]
[356039237,1741812652896,-500.0,0.00022465,2]
[356039238,1741812652906,-500.0,0.00022465,2]
[356039239,1741812652915,-500.0,0.00022465,2]
[356039240,1741812652924,-500.0,0.00022465,2]
[356039241,1741812652934,-500.0,0.00022465,2]
[356039242,1741812652943,-500.0,0.00022465,2]
[356039243,1741812652952,-500.0,0.00022465,2]
[356039244,1741812652962,-500.0,0.00022465,2]
[356039245,1741812652971,-500.0,0.00022465,2]
[356039246,1741812652980,-653.19,0.00022465,2]
[356039247,1741812652990,-500.0,0.00022465,2]
[356039248,1741812652999,-500.0,0.00022465,2]
[356039249,1741812653009,-500.0,0.00022465,2]
[356039250,1741812653019,-500.0,0.00022465,2]
[356039251,1741812653028,-940.2,0.00022465,2]
[356039252,1741812653037,-579.10752232,0.00022465,2]
[356039253,1741812653047,-500.0,0.00022465,2]
[356039254,1741812653056,-500.0,0.00022465,2]
[356039255,1741812653065,-500.0,0.00022465,2]
[356039256,1741812653075,-500.0,0.00022465,2]
[356039257,1741812653084,-503.57799636,0.00022465,2]
[356039258,1741812653093,-500.0,0.00022465,2]
[356039259,1741812653103,-500.0,0.00022465,2]
[356039260,1741812653112,-500.0,0.00022465,2]
[356039261,1741812653121,-500.0,0.00022465,2]
[356039262,1741812653131,-500.0,0.00022465,2]
[356039263,1741812653140,-445.71381202,0.00022465,2]
[356039264,1741812653149,-500.0,0.00022465,2]
[356039265,1741812653159,-500.0,0.00022465,2]
[356039266,1741812653169,-1091.73,0.00022465,2]
[356039267,1741812653179,-500.0,0.00022465,2]
[356039268,1741812653188,-500.0,0.00022465,2]
[356039269,1741812653198,-358.60827403,0.00022465,2]
[356039270,1741812653207,-500.0,0.00022465,2]
[356039271,1741812653220,-500.0,0.00022465,2]
[356039272,1741812653229,-942.93,0.00022465,2]
[356039273,1741812653238,-500.0,0.00022465,2]
[356039274,1741812653247,-500.0,0.00022465,2]
[356039275,1741812653259,-517.89584402,0.00022465,2]
[356039276,1741812653268,-500.0,0.00022465,2]
[356039277,1741812653277,-500.0,0.00022465,2]
[356039278,1741812653288,-500.0,0.00022465,2]
[356039279,1741812653297,-324.02963386,0.00022465,2]
[356039280,1741812653307,-500.0,0.00022465,2]
[356039281,1741812653316,-562.04,0.00022465,2]
[356039282,1741812653325,-500.0,0.00022465,2]
[356039283,1741812653334,-500.0,0.00022465,2]
[356039284,1741812653344,-500.0,0.00022465,2]
[356039285,1741812653353,-500.0,0.00022465,2]
[356039286,1741812653362,-684.79,0.00022465,2]
[356039287,1741812653371,-500.0,0.00022465,2]
[356039288,1741812653381,-500.0,0.00022465,2]
[356039289,1741812653391,-500.0,0.00022465,2]
[356039290,1741812653400,-500.0,0.00022465,2]
[356039291,1741812653409,-500.0,0.00022465,2]
[356039292,1741812653419,-500.0,0.00022465,2]
[356039293,1741812653428,-152.076781,0.00022465,7]
[356039294,1741812653437,-500.0,0.00022465,2]
[356039295,1741812653446,-151.0,0.00022465,7]
[356039296,1741812653455,-500.0,0.00022465,2]
[356039297,1741812653464,-500.0,0.00022465,2]
[356039298,1741812653473,-500.0,0.00022465,2]
[356039299,1741812653483,-500.0,0.00022465,2]
[356039300,1741812653492,-500.0,0.00022465,2]
[356039301,1741812653500,-500.0,0.00022465,2]
[356039302,1741812653509,-500.0,0.00022465,2]
[356039303,1741812653519,-500.0,0.00022465,2]
[356039304,1741812653529,-500.0,0.00022465,2]
[356039305,1741812653538,-500.0,0.00022465,2]
[356039306,1741812653547,-500.0,0.00022465,2]
[356039307,1741812653557,-500.0,0.00022465,2]
[356039308,1741812653566,-500.0,0.00022465,2]
[356039309,1741812653576,-500.0,0.00022465,2]
[356039310,1741812653585,-500.0,0.00022465,2]
[356039311,1741812653594,-151.0,0.00022465,7]
[356039312,1741812653603,-500.0,0.00022465,2]
[356039313,1741812653613,-519.91580609,0.00022465,2]
[356039314,1741812653622,-500.0,0.00022465,2]
[356039315,1741812653631,-500.0,0.00022465,5]
[356039316,1741812653641,-500.0,0.00022465,2]
[356039317,1741812653650,-500.0,0.00022465,2]
[356039318,1741812653660,-500.0,0.00022465,2]
[356039319,1741812653670,-398.05502889,0.00022465,2]
[356039320,1741812653680,-500.0,0.00022465,2]
[356039321,1741812653689,-500.0,0.00022465,2]
[356039322,1741812653699,-500.0,0.00022465,2]
[356039323,1741812653708,-151.0,0.00022465,7]
[356039324,1741812653717,-531.11093057,0.00022465,2]
[356039325,1741812653726,-277.386886,0.00022465,7]
[356039326,1741812653735,-845.05,0.00022465,2]
[356039327,1741812653745,-151.0,0.00022465,7]
[356039328,1741812653754,-213.90072615,0.00022465,2]
[356039329,1741812653763,-151.417655,0.00022465,7]
[356039330,1741812653773,-151.0,0.00022465,7]
[356039331,1741812653782,-500.0,0.00022465,2]
[356039332,1741812653791,-166.9256084,0.00022465,2]
[356039333,1741812653801,-500.0,0.00022465,2]
[356039334,1741812653809,-151.0,0.00022465,7]
[356039335,1741812653819,-500.0,0.00022465,2]
[356039336,1741812653828,-151.0,0.00022465,7]
[356039337,1741812653837,-500.0,0.00022465,2]
[356039338,1741812653846,-500.0,0.00022465,2]
[356039339,1741812653856,-500.0,0.00022465,2]
[356039340,1741812653866,-500.0,0.00022465,2]
[356039341,1741812653875,-151.0,0.00022465,7]
[356039342,1741812653884,-556.49728153,0.00022465,2]
[356039343,1741812653894,-500.0,0.00022465,2]
[356039344,1741812653903,-151.0,0.00022465,7]
[356039345,1741812653912,-151.0,0.00022465,7]
[356039346,1741812653921,-500.0,0.00022465,2]
[356039347,1741812653931,-151.0,0.00022465,7]
[356039348,1741812653940,-151.0,0.00022465,7]
[356039349,1741812653950,-500.0,0.00022465,2]
[356039350,1741812653959,-860.93,0.00022465,2]
[356039351,1741812653969,-500.0,0.00022465,2]
[356039352,1741812653978,-500.0,0.00022465,2]
[356039353,1741812653988,-500.0,0.00022465,2]
[356039354,1741812653997,-500.0,0.00022465,2]
[356039355,1741812654008,-500.0,0.00022465,2]
[356039356,1741812654018,-500.0,0.00022465,2]
[356039357,1741812654027,-151.0,0.00022465,7]
[356039358,1741812654036,-687.2,0.00022465,2]
[356039359,1741812654046,-500.0,0.00022465,2]
[356039360,1741812654055,-499.08584756,0.00022465,2]
[356039361,1741812654064,-500.0,0.00022465,2]
[356039362,1741812654074,-514.1,0.00022465,2]
[356039363,1741812654083,-151.0,0.00022465,7]
[356039364,1741812654092,-929.88,0.00022465,2]
[356039365,1741812654102,-500.0,0.00022465,2]
[356039366,1741812654111,-500.0,0.00022465,2]
[356039367,1741812654120,-500.0,0.00022465,2]
[356039368,1741812654130,-500.0,0.00022465,2]
[356039369,1741812654140,-946.27,0.00022465,2]
[356039370,1741812654150,-500.0,0.00022465,2]
[356039371,1741812654159,-533.65329777,0.00022465,2]
[356039372,1741812654169,-151.0,0.00022465,7]
[356039373,1741812654179,-500.0,0.00022465,2]
[356039374,1741812654188,-500.0,0.00022465,2]
[356039375,1741812654198,-500.0,0.00022465,2]
[356039376,1741812654207,-500.0,0.00022465,2]
[356039377,1741812654220,-500.0,0.00022465,2]
[356039378,1741812654229,-500.0,0.00022465,2]
[356039379,1741812654239,-500.0,0.00022465,2]
[356039380,1741812654248,-500.0,0.00022465,2]
[356039381,1741812654260,-500.0,0.00022465,2]
[356039382,1741812654269,-500.0,0.00022465,2]
[356039383,1741812654278,-500.0,0.00022465,2]
[356039384,1741812654288,-500.0,0.00022465,2]
[356039385,1741812654298,-500.0,0.00022465,2]
[356039386,1741812654308,-500.0,0.00022465,2]
[356039387,1741812654317,-500.0,0.00022465,2]
[356039388,1741812654327,-500.0,0.00022465,2]
[356039389,1741812654336,-500.0,0.00022465,2]
[356039390,1741812654346,-500.0,0.00022465,2]
[356039391,1741812654355,-500.0,0.00022465,2]
[356039392,1741812654364,-500.0,0.00022465,2]
[356039393,1741812654373,-500.0,0.00022465,2]
[356039394,1741812654382,-500.0,0.00022465,2]
[356039395,1741812654392,-500.0,0.00022465,2]
[356039396,1741812654401,-500.0,0.00022465,2]
[356039397,1741812654410,-500.0,0.00022465,2]
[356039398,1741812654420,-500.0,0.00022465,2]
[356039399,1741812654429,-500.0,0.00022465,2]
[356039400,1741812654438,-500.0,0.00022465,2]
[356039401,1741812654449,-500.0,0.00022465,2]
[356039402,1741812654458,-500.0,0.00022465,2]
[356039403,1741812654467,-500.0,0.00022465,2]
[356039404,1741812654476,-500.0,0.00022465,2]
[356039405,1741812654486,-500.0,0.00022465,2]
[356039406,1741812654495,-500.0,0.00022465,2]
[356039407,1741812654505,-500.0,0.00022465,2]
[356039408,1741812654514,-500.0,0.00022465,2]
[356039409,1741812654524,-500.0,0.00022465,2]
[356039410,1741812654534,-775.09514661,0.00022465,2]
[356039411,1741812654543,-500.0,0.00022465,2]
[356039412,1741812654553,-500.0,0.00022465,2]
[356039413,1741812654562,-500.0,0.00022465,2]
[356039414,1741812654571,-151.0,0.00022465,7]
[356039415,1741812654581,-151.0,0.00022465,7]
[356039416,1741812654591,-151.0,0.00022465,7]
[356039417,1741812654601,-288.181973,0.00022465,7]
[356039418,1741812654610,-500.0,0.00022465,2]
[356039419,1741812654619,-500.0,0.00022465,2]
[356039420,1741812654629,-500.0,0.00022465,2]
[356039421,1741812654789,-500.0,0.00022465,2]
[356039422,1741812654800,-500.0,0.00022465,2]
[356039423,1741812654810,-885.6,0.00022465,2]
[356039424,1741812654819,-151.0,0.00022465,7]
[356039425,1741812654829,-500.0,0.00022465,2]
[356039426,1741812654838,-151.0,0.00022465,7]
[356039427,1741812654848,-500.0,0.00022465,2]
[356039428,1741812654857,-500.0,0.00022465,2]
[356039429,1741812654866,-197.332462,0.00022465,7]
[356039430,1741812654875,-197.332462,0.00022465,7]
[356039431,1741812654885,-500.0,0.00022465,2]
[356039432,1741812654894,-500.0,0.00022465,2]
[356039433,1741812654903,-500.0,0.00022465,2]
[356039434,1741812654913,-197.332462,0.00022465,7]
[356039435,1741812654922,-197.332462,0.00022465,7]
[356039436,1741812654931,-500.0,0.00022465,2]
[356039437,1741812654940,-563.81168992,0.00022465,2]
[356039438,1741812654950,-500.0,0.00022465,2]
[356039439,1741812654959,-500.0,0.00022465,2]
[356039440,1741812654968,-500.0,0.00022465,2]
[356039441,1741812654978,-500.0,0.00022465,2]
[356039442,1741812654988,-500.0,0.00022465,2]
[356039443,1741812654997,-500.0,0.00022465,2]
[356039444,1741812655007,-500.0,0.00022465,2]
[356039445,1741812655016,-329.453428,0.00022465,7]
[356039446,1741812655026,-329.453428,0.00022465,7]
[356039447,1741812655035,-500.0,0.00022465,2]
[356039448,1741812655045,-329.453428,0.00022465,7]
[356039449,1741812655054,-329.453428,0.00022465,7]
[356039450,1741812655063,-500.0,0.00022465,2]
[356039451,1741812655073,-500.0,0.00022465,2]
[356039452,1741812655082,-500.0,0.00022465,2]
[356039453,1741812655091,-500.0,0.00022465,2]
[356039454,1741812655101,-505.58278429,0.00022465,2]
[356039455,1741812655110,-500.0,0.00022465,2]
[356039456,1741812655119,-1205.38,0.00022465,2]
[356039457,1741812655129,-500.0,0.00022465,2]
[356039458,1741812655139,-861.29,0.00022465,2]
[356039459,1741812655148,-517.64,0.00022465,2]
[356039460,1741812655158,-561.40885405,0.00022465,2]
[356039461,1741812655167,-949.84,0.00022465,2]
[356039462,1741812655177,-500.0,0.00022465,2]
[356039463,1741812655186,-500.0,0.00022465,2]
[356039464,1741812655196,-151.0,0.00022465,7]
[356039465,1741812655206,-500.0,0.00022465,2]
[356039466,1741812655219,-500.0,0.00022465,2]
[356039467,1741812655228,-151.0,0.00022465,7]
[356039468,1741812655237,-500.0,0.00022465,2]
[356039469,1741812655247,-153.748728,0.00022465,7]
[356039470,1741812655259,-500.0,0.00022465,2]
[356039471,1741812655269,-955.96,0.00022465,2]
[356039472,1741812655279,-151.0,0.00022465,7]
[356039473,1741812655290,-151.0,0.00022465,7]
[356039474,1741812655299,-514.87,0.00022465,2]
[356039475,1741812655310,-151.0,0.00022465,7]
[356039476,1741812655319,-151.0,0.00022465,7]
[356039477,1741812655328,-500.0,0.00022465,2]
[356039478,1741812655338,-500.0,0.00022465,2]
[356039479,1741812655347,-502.29,0.00022465,2]
[356039480,1741812655356,-500.0,0.00022465,2]
[356039481,1741812655365,-500.0,0.00022465,2]
[356039482,1741812655374,-842.43,0.00022465,2]
[356039483,1741812655384,-500.0,0.00022465,2]
[356039484,1741812655394,-500.0,0.00022465,2]
[356039485,1741812655403,-389.92741209,0.00022465,2]
[356039486,1741812655414,-1009.18,0.00022465,2]
[356039487,1741812655424,-500.0,0.00022465,2]
[356039488,1741812655434,-500.0,0.00022465,2]
[356039489,1741812655443,-151.0,0.00022465,7]
[356039490,1741812655453,-500.0,0.00022465,2]
[356039491,1741812655463,-151.0,0.00022465,7]
[356039492,1741812655473,-151.0,0.00022465,7]
[356039493,1741812655483,-151.0,0.00022465,7]
[356039494,1741812655493,-500.0,0.00022465,2]
[356039495,1741812655503,-500.0,0.00022465,2]
[356039496,1741812655512,-151.0,0.00022465,7]
[356039497,1741812655522,-500.0,0.00022465,2]
[356039498,1741812655531,-500.0,0.00022465,2]
[356039499,1741812655541,-151.0,0.00022465,7]
[356039500,1741812655551,-500.0,0.00022465,2]
[356039501,1741812655560,-546.06,0.00022465,2]
[356039502,1741812655569,-500.0,0.00022465,2]
[356039503,1741812655579,-500.0,0.00022465,2]
[356039504,1741812655588,-500.0,0.00022465,2]
[356039505,1741812655598,-500.0,0.00022465,2]
[356039506,1741812655608,-151.0,0.00022465,7]
[356039507,1741812655618,-166.29440643,0.00022465,2]
[356039508,1741812655627,-500.0,0.00022465,2]
[356039509,1741812655636,-662.187127,0.00022465,7]
[356039510,1741812655646,-662.187127,0.00022465,7]
[356039511,1741812655656,-500.0,0.00022465,2]
[356039512,1741812655666,-500.0,0.00022465,2]
[356039513,1741812655676,-214.10958853,0.00022465,2]
[356039514,1741812655685,-500.0,0.00022465,2]
[356039515,1741812655694,-500.0,0.00022465,2]
[356039516,1741812655704,-500.0,0.00022465,2]
[356039517,1741812655714,-1051.09,0.00022465,2]
[356039518,1741812655724,-500.0,0.00022465,2]
[356039519,1741812655734,-500.0,0.00022465,2]
[356039520,1741812655744,-610.44710715,0.00022465,2]
[356039521,1741812655754,-500.0,0.00022465,2]
[356039522,1741812655763,-500.0,0.00022465,2]
[356039523,1741812655773,-500.0,0.00022465,2]
[356039524,1741812655782,-500.0,0.00022465,2]
[356039525,1741812655792,-1653.56,0.00022465,2]
[356039526,1741812655801,-388.013246,0.00022465,7]
[356039527,1741812655811,-500.0,0.00022465,2]
[356039528,1741812655821,-500.0,0.00022465,2]
[356039529,1741812655830,-388.013246,0.00022465,7]
[356039530,1741812655840,-1703.6,0.00022465,2]
[356039531,1741812655849,-500.0,0.00022465,2]
[356039532,1741812655859,-500.0,0.00022465,2]
[356039533,1741812655869,-537.0,0.00022465,2]
[356039534,1741812655879,-500.0,0.00022465,2]
[356039535,1741812655888,-500.0,0.00022465,2]
[356039536,1741812655898,-500.0,0.00022465,2]
[356039537,1741812655908,-500.0,0.00022465,2]
[356039538,1741812655918,-500.0,0.00022465,2]
[356039539,1741812655928,-500.0,0.00022465,2]
[356039540,1741812655937,-717.98336,0.00022465,7]
[356039541,1741812655947,-1047.52,0.00022465,2]
[356039542,1741812655957,-717.98336,0.00022465,7]
[356039543,1741812655967,-746.4,0.00022465,2]
[356039544,1741812655976,-500.34277318,0.00022465,2]
[356039545,1741812655986,-619.47092971,0.00022465,2]
[356039546,1741812655995,-500.0,0.00022465,2]
[356039547,1741812656006,-500.0,0.00022465,2]
[356039548,1741812656016,-573.41616792,0.00022465,2]
[356039549,1741812656026,-500.0,0.00022465,2]
[356039550,1741812656035,-1574.66,0.00022465,2]
[356039551,1741812656045,-500.0,0.00022465,2]
[356039552,1741812656054,-3071.24,0.00022465,2]
[356039553,1741812656064,-500.0,0.00022465,2]
[356039554,1741812656074,-523.24,0.00022465,2]
[356039555,1741812656083,-1769.55,0.00022465,2]
[356039556,1741812656093,-500.0,0.00022465,2]
[356039557,1741812656102,-500.0,0.00022465,2]
[356039558,1741812656112,-2156.11,0.00022465,2]
[356039559,1741812656122,-500.0,0.00022465,2]
[356039560,1741812656131,-220.089596,0.00022465,7]
[356039561,1741812656141,-500.0,0.00022465,2]
[356039562,1741812656150,-220.089596,0.00022465,7]
[356039563,1741812656159,-500.0,0.00022465,2]
[356039564,1741812656168,-500.0,0.00022465,2]
[356039565,1741812656178,-500.0,0.00022465,2]
[356039566,1741812656188,-2882.36,0.00022465,2]
[356039567,1741812656197,-220.089596,0.00022465,7]
[356039568,1741812656207,-220.089596,0.00022465,7]
[356039569,1741812656219,-500.0,0.00022465,2]
[356039570,1741812656228,-4016.75,0.00022465,2]
[356039571,1741812656238,-500.0,0.00022465,2]
[356039572,1741812656247,-1050.365468,0.00022465,7]
[356039573,1741812656258,-1050.365468,0.00022465,7]
[356039574,1741812656267,-1050.365468,0.00022465,7]
[356039575,1741812656277,-1050.365468,0.00022465,7]
[356039576,1741812656288,-154.18543258,0.00022465,2]
[356039577,1741812656298,-500.0,0.00022465,2]
[356039578,1741812656307,-500.0,0.00022465,2]
[356039579,1741812656316,-500.0,0.00022465,2]
[356039580,1741812656326,-151.0,0.00022465,7]
[356039581,1741812656335,-151.0,0.00022465,7]
[356039582,1741812656345,-500.0,0.00022465,2]
[356039583,1741812656354,-159.574749,0.00022465,7]
[356039584,1741812656364,-500.0,0.00022465,2]
[356039585,1741812656373,-4633.170085,0.00022465,7]
[356039586,1741812656383,-4661.14,0.00022465,2]
[356039587,1741812656392,-4633.170085,0.00022465,7]
[356039588,1741812656402,-151.0,0.00022465,7]
[356039589,1741812656411,-151.0,0.00022465,7]
[356039590,1741812656421,-151.0,0.00022465,7]
[356039591,1741812656430,-151.0,0.00022465,7]
[356039592,1741812656439,-546.23,0.00022465,2]
[356039593,1741812656449,-500.0,0.00022465,2]
[356039594,1741812656459,-160.0,0.00022465,7]
[356039595,1741812656468,-1675.01,0.00022465,2]
[356039596,1741812656477,-500.0,0.00022465,2]
[356039597,1741812656486,-500.0,0.00022465,2]
[356039598,1741812656493,-514.86,0.00022465,2]
[356039599,1741812656502,-500.0,0.00022465,2]
[356039600,1741812656510,-957.96,0.00022465,2]
[356039601,1741812656519,-500.0,0.00022465,2]
[356039602,1741812656529,-186.13418734,0.00022465,2]
[356039603,1741812656538,-7479.31,0.00022465,2]
[356039604,1741812656547,-659.73,0.00022465,2]
[356039605,1741812656557,-500.0,0.00022465,2]
[356039606,1741812656566,-3238.74,0.00022465,2]
[356039607,1741812656576,-500.0,0.00022465,2]
[356039608,1741812656586,-500.0,0.00022465,2]
[356039609,1741812656595,-2697.44,0.00022465,2]
[356039610,1741812656605,-775.01,0.00022465,2]
[356039611,1741812656615,-582.43,0.00022465,2]
[356039612,1741812656624,-500.0,0.00022465,2]
[356039613,1741812656634,-500.0,0.00022465,2]
[356039614,1741812656643,-4805.33,0.00022465,2]
[356039615,1741812656654,-831.75,0.00022465,2]
[356039616,1741812656662,-500.0,0.00022465,2]
[356039617,1741812656672,-3082.95,0.00022465,2]
[356039618,1741812656682,-607.2,0.00022465,2]
[356039619,1741812656691,-500.0,0.00022465,2]
[356039620,1741812656701,-500.0,0.00022465,2]
[356039621,1741812656710,-500.0,0.00022465,2]
[356039622,1741812656719,-1542.79,0.00022465,2]
[356039623,1741812656729,-500.0,0.00022465,2]
[356039624,1741812656738,-500.0,0.00022465,2]
[356039625,1741812656748,-162.389569,0.00022465,7]
[356039626,1741812656757,-162.389569,0.00022465,7]
[356039627,1741812656766,-1463.89,0.00022465,2]
[356039628,1741812656776,-500.0,0.00022465,2]
[356039629,1741812656785,-162.389569,0.00022465,7]
[356039630,1741812656794,-162.389569,0.00022465,7]
[356039631,1741812656804,-542.49,0.00022465,2]
[356039632,1741812656812,-1731.81,0.00022465,2]
[356039633,1741812656820,-500.0,0.00022465,2]
[356039634,1741812656830,-500.0,0.00022465,2]
[356039635,1741812656840,-500.0,0.00022465,2]
[356039636,1741812656849,-500.0,0.00022465,2]
[356039637,1741812656858,-4017.16,0.00022465,2]
[356039638,1741812656868,-535.57298053,0.00022465,2]
[356039639,1741812656878,-707.42,0.00022465,2]
[356039640,1741812656887,-60779.4,0.00022465,2]
[356039641,1741812656896,-500.0,0.00022465,2]
[356039642,1741812656906,-584.68,0.00022465,2]
[356039643,1741812656915,-2056.84,0.00022465,2]
[356039644,1741812656925,-552.32441203,0.00022465,2]
[356039645,1741812656934,-2794.14,0.00022465,2]
[356039646,1741812656944,-500.0,0.00022465,2]
[356039647,1741812656953,-500.0,0.00022465,2]
[356039648,1741812656962,-151.0,0.00022465,7]
[356039649,1741812656971,-171.00957,0.00022465,7]
[356039650,1741812656979,-2327.8,0.00022465,2]
[356039651,1741812656989,-2757.77,0.00022465,2]
[356039652,1741812656998,-727.37,0.00022465,2]
[356039653,1741812657008,-500.0,0.00022465,2]
[356039654,1741812657017,-220.152077,0.00022465,7]
[356039655,1741812657027,-500.0,0.00022465,2]